fUSD/lending_fUSD_20240527
["ID","MTS","AMOUNT","RATE_DAILY","PERIOD"]
[328014541,1716773489749,-500.0,0.00028767,4]
[328014542,1716773489758,-500.0,0.00028767,4]
[328014543,1716773489767,-500.0,0.00028767,4]
[328014544,1716773489776,-500.0,0.00028767,4]
[328014545,1716773489785,-500.0,0.00028767,4]
[328014546,1716773489794,-500.0,0.00028767,4]
[328014547,1716773489803,-2143.83,0.00028767,4]
[328014548,1716773489812,-2383.33,0.00028767,4]
[328014549,1716773489825,-500.0,0.00028767,4]
[328014550,1716773489834,-500.0,0.00028767,4]
[328014551,1716773489843,-500.0,0.00028767,4]
[328014552,1716773489852,-500.0,0.00028767,4]
[328014553,1716773489863,-500.0,0.00028767,4]
[328014554,1716773489872,-1576.4,0.00028767,4]
[328014555,1716773489881,-1713.46,0.00028767,4]
[328014556,1716773489890,-786.1,0.00028767,4]
[328014557,1716773489900,-3324.33,0.00028767,4]
[328014558,1716773489910,-1532.05,0.00028767,4]
[328014559,1716773489919,-1197.25,0.00028767,4]
[328014560,1716773489929,-500.0,0.00028767,4]
[328014561,1716773489939,-908.76,0.00028767,4]
[328014562,1716773489947,-606.23,0.00028767,4]
[328014563,1716773489956,-500.0,0.00028767,4]
[328014564,1716773489965,-500.0,0.00028767,4]
[328014565,1716773489974,-500.0,0.00028767,4]
[328014566,1716773489983,-881.49,0.00028767,4]
[328014567,1716773489993,-500.0,0.00028767,4]
[328014568,1716773490002,-760.48,0.00028767,4]
[328014569,1716773490011,-10252.41,0.00028767,4]
[328014570,1716773490020,-500.0,0.00028767,4]
[328014571,1716773490030,-1016.57,0.00028767,4]
[328014572,1716773490039,-601.05,0.00028767,4]
[328014573,1716773490049,-984.73,0.00028767,4]
[328014574,1716773490059,-879.73,0.00028767,4]
[328014575,1716773490068,-500.0,0.00028767,4]
[328014576,1716773490077,-1296.31,0.00028767,4]
[328014577,1716773490086,-913.5,0.00028767,4]
[328014578,1716773490095,-500.0,0.00028767,4]
[328014579,1716773490104,-627.73,0.00028767,4]
[328014580,1716773490114,-12959.85,0.00028767,4]
[328014581,1716773490124,-500.0,0.00028767,4]
[328014582,1716773490133,-500.0,0.00028767,4]
[328014583,1716773490142,-1152.84,0.00028767,4]
[328014584,1716773490152,-500.0,0.00028767,4]
[328014585,1716773490162,-1257.91,0.00028767,4]
[328014586,1716773490170,-500.0,0.00028767,4]
[328014587,1716773490180,-500.0,0.00028767,4]
[328014588,1716773490189,-1837.75,0.00028767,4]
[328014589,1716773490198,-2024.08,0.00028767,4]
[328014590,1716773490207,-500.0,0.00028767,4]
[328014591,1716773490216,-500.0,0.00028767,4]
[328014592,1716773490225,-500.0,0.00028767,4]
[328014593,1716773490234,-378.56497685,0.00028767,4]
[328014594,1716773490243,-1234.35,0.00028767,4]
[328014595,1716773490253,-602.61,0.00028767,4]
[328014596,1716773490263,-500.0,0.00028767,4]
[328014597,1716773490272,-1687.26,0.00028767,4]
[328014598,1716773490281,-500.0,0.00028767,4]
[328014599,1716773490290,-500.0,0.00028767,4]
[328014600,1716773490299,-500.0,0.00028767,4]
[328014601,1716773490308,-500.0,0.00028767,4]
[328014602,1716773490317,-500.0,0.00028767,4]
[328014603,1716773490326,-869.6,0.00028767,4]
[328014604,1716773490335,-572.54,0.00028767,4]
[328014605,1716773490345,-915.48,0.00028767,4]
[328014606,1716773490353,-500.0,0.00028767,4]
[328014607,1716773490363,-500.0,0.00028767,4]
[328014608,1716773490372,-1160.09,0.00028767,4]
[328014609,1716773490381,-894.59,0.00028767,4]
[328014610,1716773490390,-500.0,0.00028767,4]
[328014611,1716773490399,-1359.95,0.00028767,4]
[328014612,1716773490408,-500.0,0.00028767,4]
[328014613,1716773490417,-777.55,0.00028767,4]
[328014614,1716773490426,-500.0,0.00028767,4]
[328014615,1716773490435,-955.96,0.00028767,4]
[328014616,1716773490443,-500.0,0.00028767,4]
[328014617,1716773490452,-500.0,0.00028767,4]
[328014618,1716773490461,-590.73,0.00028767,4]
[328014619,1716773490470,-500.0,0.00028767,4]
[328014620,1716773490479,-824.44,0.00028767,4]
[328014621,1716773490488,-1899.17,0.00028767,4]
[328014622,1716773490497,-500.0,0.00028767,4]
[328014623,1716773490506,-500.0,0.00028767,4]
[328014624,1716773490515,-709.3,0.00028767,4]
[328014625,1716773490524,-726.34,0.00028767,4]
[328014626,1716773490533,-1522.47,0.00028767,4]
[328014627,1716773490542,-500.0,0.00028767,4]
[328014628,1716773490552,-1111.07,0.00028767,4]
[328014629,1716773490561,-6862.17,0.00028767,4]
[328014630,1716773490570,-500.0,0.00028767,4]
[328014631,1716773490579,-1636.35,0.00028767,4]
[328014632,1716773490588,-500.0,0.00028767,4]
[328014633,1716773490598,-977.11,0.00028767,4]
[328014634,1716773490607,-879.18,0.00028767,4]
[328014635,1716773490616,-1153.21,0.00028767,4]
[328014636,1716773490624,-688.44,0.00028767,4]
[328014637,1716773490634,-706.27,0.00028767,4]
[328014638,1716773490643,-500.0,0.00028767,4]
[328014639,1716773490651,-500.0,0.00028767,4]
[328014640,1716773490661,-1139.88,0.00028767,4]
[328014641,1716773490670,-500.0,0.00028767,4]
[328014642,1716773490679,-500.0,0.00028767,4]
[328014643,1716773490688,-1445.7,0.00028767,4]
[328014644,1716773490697,-500.0,0.00028767,4]
[328014645,1716773490706,-818.95,0.00028767,4]
[328014646,1716773490715,-500.0,0.00028767,4]
[328014647,1716773490724,-500.0,0.00028767,4]
[328014648,1716773490733,-2130.92,0.00028767,4]
[328014649,1716773490743,-3583.63,0.00028767,4]
[328014650,1716773490752,-5398.85,0.00028767,4]
[328014651,1716773490761,-874.92,0.00028767,4]
[328014652,1716773490770,-1049.53,0.00028767,4]
[328014653,1716773490779,-500.0,0.00028767,4]
[328014654,1716773490788,-6155.22,0.00028767,4]
[328014655,1716773490797,-2307.64,0.00028767,4]
[328014656,1716773490806,-500.0,0.00028767,4]
[328014657,1716773490815,-500.0,0.00028767,4]
[328014658,1716773490827,-647.85,0.00028767,4]
[328014659,1716773490836,-500.0,0.00028767,4]
[328014660,1716773490845,-500.0,0.00028767,4]
[328014661,1716773490854,-1590.14,0.00028767,4]
[328014662,1716773490864,-1987.82,0.00028767,4]
[328014663,1716773490875,-4196.44,0.00028767,4]
[328014664,1716773490883,-500.0,0.00028767,4]
[328014665,1716773490893,-1672.39,0.00028767,4]
[328014666,1716773490904,-1529.19,0.00028767,4]
[328014667,1716773490913,-500.0,0.00028767,4]
[328014668,1716773490922,-1357.3,0.00028767,4]
[328014669,1716773490931,-500.0,0.00028767,4]
[328014670,1716773490940,-3193.96,0.00028767,4]
[328014671,1716773490949,-500.0,0.00028767,4]
[328014672,1716773490959,-2967.77,0.00028767,4]
[328014673,1716773490969,-500.0,0.00028767,4]
[328014674,1716773490978,-500.0,0.00028767,4]
[328014675,1716773490987,-432.53205985,0.00028767,4]
[328014676,1716773490996,-1331.17,0.00028767,4]
[328014677,1716773491006,-953.21,0.00028767,4]
[328014678,1716773491016,-500.0,0.00028767,4]
[328014679,1716773491025,-683.81,0.00028767,4]
[328014680,1716773491034,-621.07,0.00028767,4]
[328014681,1716773491044,-3518.53,0.00028767,4]
[328014682,1716773491053,-707.14,0.00028767,4]
[328014683,1716773491063,-500.0,0.00028767,4]
[328014684,1716773491073,-500.0,0.00028767,4]
[328014685,1716773491082,-1400.41,0.00028767,4]
[328014686,1716773491091,-500.0,0.00028767,4]
[328014687,1716773491101,-500.0,0.00028767,4]
[328014688,1716773491111,-1255.06,0.00028767,4]
[328014689,1716773491121,-500.0,0.00028767,4]
[328014690,1716773491130,-500.0,0.00028767,4]
[328014691,1716773491139,-500.0,0.00028767,4]
[328014692,1716773491149,-2187.31,0.00028767,4]
[328014693,1716773491158,-500.0,0.00028767,4]
[328014694,1716773491168,-1098.66,0.00028767,4]
[328014695,1716773491176,-919.68,0.00028767,4]
[328014696,1716773491186,-2106.55,0.00028767,4]
[328014697,1716773491195,-2336.3,0.00028767,4]
[328014698,1716773491205,-500.0,0.00028767,4]
[328014699,1716773491215,-269.92147843,0.00028767,4]
[328014700,1716773491224,-1415.86,0.00028767,4]
[328014701,1716773491233,-1637.74,0.00028767,4]
[328014702,1716773491243,-609.84,0.00028767,4]
[328014703,1716773491252,-912.06,0.00028767,4]
[328014704,1716773491261,-500.0,0.00028767,4]
[328014705,1716773491271,-500.0,0.00028767,4]
[328014706,1716773491280,-1275.52,0.00028767,4]
[328014707,1716773491290,-500.0,0.00028767,4]
[328014708,1716773491299,-1558.22,0.00028767,4]
[328014709,1716773491308,-500.0,0.00028767,4]
[328014710,1716773491317,-500.0,0.00028767,4]
[328014711,1716773491327,-500.0,0.00028767,4]
[328014712,1716773491336,-3246.02,0.00028767,4]
[328014713,1716773491345,-1094.9,0.00028767,4]
[328014714,1716773491354,-500.0,0.00028767,4]
[328014715,1716773491363,-537.01,0.00028767,4]
[328014716,1716773491372,-500.0,0.00028767,4]
[328014717,1716773491381,-500.0,0.00028767,4]
[328014718,1716773491390,-500.0,0.00028767,4]
[328014719,1716773491399,-500.0,0.00028767,4]
[328014720,1716773491409,-999.12,0.00028767,4]
[328014721,1716773491418,-593.71,0.00028767,4]
[328014722,1716773491428,-500.0,0.00028767,4]
[328014723,1716773491437,-500.0,0.00028767,4]
[328014724,1716773491447,-500.0,0.00028767,4]
[328014725,1716773491457,-510.96,0.00028767,4]
[328014726,1716773491466,-500.0,0.00028767,4]
[328014727,1716773491476,-1146.79,0.00028767,4]
[328014728,1716773491485,-1494.94,0.00028767,4]
[328014729,1716773491495,-1156.39,0.00028767,4]
[328014730,1716773491503,-500.0,0.00028767,4]
[328014731,1716773491513,-500.0,0.00028767,4]
[328014732,1716773491522,-500.0,0.00028767,4]
[328014733,1716773491531,-3014.19,0.00028767,4]
[328014734,1716773491540,-500.0,0.00028767,4]
[328014735,1716773491549,-766.93,0.00028767,4]
[328014736,1716773491558,-500.0,0.00028767,4]
[328014737,1716773491567,-500.0,0.00028767,4]
[328014738,1716773491576,-500.0,0.00028767,4]
[328014739,1716773491586,-1271.17,0.00028767,4]
[328014740,1716773491595,-500.0,0.00028767,4]
[328014741,1716773491604,-500.0,0.00028767,4]
[328014742,1716773491614,-500.0,0.00028767,4]
[328014743,1716773491623,-500.0,0.00028767,4]
[328014744,1716773491632,-7504.54,0.00028767,4]
[328014745,1716773491641,-500.0,0.00028767,4]
[328014746,1716773491651,-500.0,0.00028767,4]
[328014747,1716773491660,-500.0,0.00028767,4]
[328014748,1716773491671,-287.78248536,0.00028767,4]
[328014749,1716773491681,-200.0,0.00028795,2]
[328014750,1716773491690,-200.0,0.00028866,2]
[328014751,1716773491699,-3268.60593297,0.00028913,2]
[328014752,1716773491708,-724.0,0.00029011,15]
[328014753,1716773491718,-647.0,0.00029011,15]
[328014754,1716773491727,-252.26594105,0.00029019,2]
[328014755,1716773491736,-724.0,0.00029021,15]
[328014756,1716773491746,-647.0,0.00029021,15]
[328014757,1716773491755,-724.0,0.00029031,15]
[328014758,1716773491764,-647.0,0.00029031,15]
[328014759,1716773491774,-500.0,0.0002904,4]
[328014760,1716773491783,-500.0,0.0002904,4]
[328014761,1716773491792,-150.0,0.0002904,2]
[328014762,1716773491801,-500.0,0.00029041,4]
[328014763,1716773491810,-500.0,0.00029041,4]
[328014764,1716773491820,-508.27379992,0.00029041,4]
[328014765,1716773491832,-500.0,0.00029041,4]
[328014766,1716773491842,-500.0,0.00029041,4]
[328014767,1716773491851,-500.0,0.00029041,4]
[328014768,1716773491860,-695.36,0.00029041,4]
[328014769,1716773491870,-500.0,0.00029041,4]
[328014770,1716773491879,-500.0,0.00029041,4]
[328014771,1716773491889,-500.0,0.00029041,4]
[328014772,1716773491901,-500.0,0.00029041,4]
[328014773,1716773491911,-151.13,0.00029041,4]
[328014774,1716773491921,-500.0,0.00029041,4]
[328014775,1716773491930,-500.0,0.00029041,4]
[328014776,1716773491939,-500.0,0.00029041,4]
[328014777,1716773491948,-500.0,0.00029041,4]
[328014778,1716773491957,-500.0,0.00029041,4]
[328014779,1716773491967,-500.0,0.00029041,4]
[328014780,1716773491975,-500.0,0.00029041,4]
[328014781,1716773491983,-500.0,0.00029041,4]
[328014782,1716773491993,-736.3,0.00029041,4]
[328014783,1716773492003,-500.0,0.00029041,4]
[328014784,1716773492013,-500.0,0.00029041,4]
[328014785,1716773492023,-500.0,0.00029041,4]
[328014786,1716773492032,-500.0,0.00029041,4]
[328014787,1716773492041,-500.0,0.00029041,4]
[328014788,1716773492051,-500.0,0.00029041,4]
[328014789,1716773492060,-500.0,0.00029041,4]
[328014790,1716773492069,-500.0,0.00029041,4]
[328014791,1716773492078,-500.0,0.00029041,4]
[328014792,1716773492088,-500.0,0.00029041,4]
[328014793,1716773492097,-500.0,0.00029041,4]
[328014794,1716773492106,-500.0,0.00029041,4]
[328014795,1716773492117,-500.0,0.00029041,4]
[328014796,1716773492127,-500.0,0.00029041,4]
[328014797,1716773492136,-500.0,0.00029041,4]
[328014798,1716773492145,-500.0,0.00029041,4]
[328014799,1716773492154,-571.02070359,0.00029041,4]
[328014800,1716773492163,-500.0,0.00029041,4]
[328014801,1716773492172,-500.0,0.00029041,4]
[328014802,1716773492182,-763.53,0.00029041,4]
[328014803,1716773492192,-500.0,0.00029041,4]
[328014804,1716773492201,-500.0,0.00029041,4]
[328014805,1716773492210,-500.0,0.00029041,4]
[328014806,1716773492220,-500.0,0.00029041,4]
[328014807,1716773492229,-500.0,0.00029041,4]
[328014808,1716773492239,-500.0,0.00029041,4]
[328014809,1716773492248,-500.0,0.00029041,4]
[328014810,1716773492258,-500.0,0.00029041,4]
[328014811,1716773492268,-500.0,0.00029041,4]
[328014812,1716773492277,-500.0,0.00029041,4]
[328014813,1716773492286,-500.0,0.00029041,4]
[328014814,1716773492296,-500.0,0.00029041,4]
[328014815,1716773492305,-500.0,0.00029041,4]
[328014816,1716773492314,-500.0,0.00029041,4]
[328014817,1716773492323,-500.0,0.00029041,4]
[328014818,1716773492333,-500.0,0.00029041,4]
[328014819,1716773492343,-500.0,0.00029041,4]
[328014820,1716773492354,-500.0,0.00029041,4]
[328014821,1716773492365,-500.0,0.00029041,4]
[328014822,1716773492375,-500.0,0.00029041,4]
[328014823,1716773492384,-500.0,0.00029041,4]
[328014824,1716773492394,-500.0,0.00029041,4]
[328014825,1716773492403,-500.0,0.00029041,4]
[328014826,1716773492412,-500.0,0.00029041,4]
[328014827,1716773492421,-500.0,0.00029041,4]
[328014828,1716773492431,-500.0,0.00029041,4]
[328014829,1716773492440,-150.0,0.00029041,4]
[328014830,1716773492450,-500.0,0.00029041,4]
[328014831,1716773492459,-500.0,0.00029041,4]
[328014832,1716773492469,-500.0,0.00029041,4]
[328014833,1716773492478,-500.0,0.00029041,4]
[328014834,1716773492488,-500.0,0.00029041,4]
[328014835,1716773492497,-500.0,0.00029041,4]
[328014836,1716773492506,-500.0,0.00029041,4]
[328014837,1716773492515,-500.0,0.00029041,4]
[328014838,1716773492525,-500.0,0.00029041,4]
[328014839,1716773492534,-500.0,0.00029041,4]
[328014840,1716773492713,-509.3,0.00029041,4]
[328014841,1716773492723,-500.0,0.00029041,4]
[328014842,1716773492733,-500.0,0.00029041,4]
[328014843,1716773492742,-500.0,0.00029041,4]
[328014844,1716773492751,-500.0,0.00029041,4]
[328014845,1716773492761,-500.0,0.00029041,4]
[328014846,1716773492770,-500.0,0.00029041,4]
[328014847,1716773492779,-500.0,0.00029041,4]
[328014848,1716773492789,-500.0,0.00029041,4]
[328014849,1716773492798,-500.0,0.00029041,4]
[328014850,1716773492808,-500.0,0.00029041,4]
[328014851,1716773492818,-500.0,0.00029041,4]
[328014852,1716773492830,-500.0,0.00029041,4]
[328014853,1716773492839,-500.0,0.00029041,4]
[328014854,1716773492848,-618.09,0.00029041,4]
[328014855,1716773492858,-500.0,0.00029041,4]
[328014856,1716773492869,-500.0,0.00029041,4]
[328014857,1716773492879,-500.0,0.00029041,4]
[328014858,1716773492888,-500.0,0.00029041,4]
[328014859,1716773492897,-500.0,0.00029041,4]
[328014860,1716773492909,-500.0,0.00029041,4]
[328014861,1716773492920,-500.0,0.00029041,4]
[328014862,1716773492929,-500.0,0.00029041,4]
[328014863,1716773492939,-500.0,0.00029041,4]
[328014864,1716773492950,-500.0,0.00029041,4]
[328014865,1716773492959,-500.0,0.00029041,4]
[328014866,1716773492969,-500.0,0.00029041,4]
[328014867,1716773492978,-500.0,0.00029041,4]
[328014868,1716773492987,-500.0,0.00029041,4]
[328014869,1716773492997,-500.0,0.00029041,4]
[328014870,1716773493007,-500.0,0.00029041,4]
[328014871,1716773493016,-510.97914918,0.00029041,4]
[328014872,1716773493027,-500.0,0.00029041,4]
[328014873,1716773493037,-500.0,0.00029041,4]
[328014874,1716773493046,-500.0,0.00029041,4]
[328014875,1716773493055,-500.0,0.00029041,4]
[328014876,1716773493064,-500.0,0.00029041,4]
[328014877,1716773493074,-500.0,0.00029041,4]
[328014878,1716773493083,-300.0,0.00029041,4]
[328014879,1716773493093,-500.0,0.00029041,4]
[328014880,1716773493103,-500.0,0.00029041,4]
[328014881,1716773493113,-500.0,0.00029041,4]
[328014882,1716773493123,-525.03,0.00029041,4]
[328014883,1716773493132,-500.0,0.00029041,4]
[328014884,1716773493142,-500.0,0.00029041,4]
[328014885,1716773493152,-500.0,0.00029041,4]
[328014886,1716773493161,-500.0,0.00029041,4]
[328014887,1716773493170,-500.0,0.00029041,4]
[328014888,1716773493179,-500.0,0.00029041,4]
[328014889,1716773493189,-500.0,0.00029041,4]
[328014890,1716773493198,-500.0,0.00029041,4]
[328014891,1716773493208,-539.9,0.00029041,4]
[328014892,1716773493217,-657.09,0.00029041,4]
[328014893,1716773493227,-500.0,0.00029041,4]
[328014894,1716773493237,-500.0,0.00029041,4]
[328014895,1716773493247,-500.0,0.00029041,4]
[328014896,1716773493256,-500.0,0.00029041,4]
[328014897,1716773493266,-500.0,0.00029041,4]
[328014898,1716773493276,-500.0,0.00029041,4]
[328014899,1716773493285,-500.0,0.00029041,4]
[328014900,1716773493295,-500.0,0.00029041,4]
[328014901,1716773493305,-500.0,0.00029041,4]
[328014902,1716773493315,-500.0,0.00029041,4]
[328014903,1716773493325,-500.0,0.00029041,4]
[328014904,1716773493335,-500.0,0.00029041,4]
[328014905,1716773493344,-500.0,0.00029041,4]
[328014906,1716773493353,-750.33,0.00029041,4]
[328014907,1716773493364,-500.0,0.00029041,4]
[328014908,1716773493374,-500.0,0.00029041,4]
[328014909,1716773493383,-500.0,0.00029041,4]
[328014910,1716773493393,-743.01,0.00029041,4]
[328014911,1716773493402,-500.0,0.00029041,4]
[328014912,1716773493411,-500.0,0.00029041,4]
[328014913,1716773493421,-500.0,0.00029041,4]
[328014914,1716773493431,-500.0,0.00029041,4]
[328014915,1716773493440,-500.0,0.00029041,4]
[328014916,1716773493450,-500.0,0.00029041,4]
[328014917,1716773493459,-500.0,0.00029041,4]
[328014918,1716773493469,-613.12,0.00029041,4]
[328014919,1716773493479,-500.0,0.00029041,4]
[328014920,1716773493489,-500.0,0.00029041,4]
[328014921,1716773493499,-500.0,0.00029041,4]
[328014922,1716773493508,-556.86662445,0.00029041,4]
[328014923,1716773493517,-500.0,0.00029041,4]
[328014924,1716773493526,-500.0,0.00029041,4]
[328014925,1716773493538,-500.0,0.00029041,4]
[328014926,1716773493547,-500.0,0.00029041,4]
[328014927,1716773493556,-500.0,0.00029041,4]
[328014928,1716773493565,-500.0,0.00029041,4]
[328014929,1716773493575,-500.0,0.00029041,4]
[328014930,1716773493584,-500.0,0.00029041,4]
[328014931,1716773493594,-674.79,0.00029041,4]
[328014932,1716773493604,-500.0,0.00029041,4]
[328014933,1716773493614,-500.0,0.00029041,4]
[328014934,1716773493624,-500.0,0.00029041,4]
[328014935,1716773493634,-500.0,0.00029041,4]
[328014936,1716773493643,-500.0,0.00029041,4]
[328014937,1716773493652,-637.71,0.00029041,4]
[328014938,1716773493661,-500.0,0.00029041,4]
[328014939,1716773493671,-500.0,0.00029041,4]
[328014940,1716773493680,-500.0,0.00029041,4]
[328014941,1716773493689,-610.35,0.00029041,4]
[328014942,1716773493699,-565.63,0.00029041,4]
[328014943,1716773493708,-500.0,0.00029041,4]
[328014944,1716773493719,-500.0,0.00029041,4]
[328014945,1716773493728,-500.0,0.00029041,4]
[328014946,1716773493738,-500.0,0.00029041,4]
[328014947,1716773493747,-500.0,0.00029041,4]
[328014948,1716773493757,-1112.41,0.00029041,4]
[328014949,1716773493767,-500.0,0.00029041,4]
[328014950,1716773493776,-500.0,0.00029041,4]
[328014951,1716773493785,-500.0,0.00029041,4]
[328014952,1716773493795,-518.47,0.00029041,4]
[328014953,1716773493805,-500.0,0.00029041,4]
[328014954,1716773493815,-500.0,0.00029041,4]
[328014955,1716773493827,-820.24,0.00029041,4]
[328014956,1716773493837,-500.0,0.00029041,4]
[328014957,1716773493847,-500.0,0.00029041,4]
[328014958,1716773493856,-500.0,0.00029041,4]
[328014959,1716773493867,-500.0,0.00029041,4]
[328014960,1716773493876,-500.0,0.00029041,4]
[328014961,1716773493886,-500.0,0.00029041,4]
[328014962,1716773493895,-500.0,0.00029041,4]
[328014963,1716773493907,-813.92,0.00029041,4]
[328014964,1716773493918,-500.0,0.00029041,4]
[328014965,1716773493927,-500.0,0.00029041,4]
[328014966,1716773493936,-500.0,0.00029041,4]
[328014967,1716773493946,-500.0,0.00029041,4]
[328014968,1716773493955,-500.0,0.00029041,4]
[328014969,1716773493964,-500.0,0.00029041,4]
[328014970,1716773493974,-500.0,0.00029041,4]
[328014971,1716773493984,-500.0,0.00029041,4]
[328014972,1716773493995,-500.0,0.00029041,4]
[328014973,1716773494004,-1135.33,0.00029041,4]
[328014974,1716773494014,-1037.2,0.00029041,4]
[328014975,1716773494024,-500.0,0.00029041,4]
[328014976,1716773494034,-1002.02,0.00029041,4]
[328014977,1716773494043,-500.0,0.00029041,4]
[328014978,1716773494052,-500.0,0.00029041,4]
[328014979,1716773494062,-696.41,0.00029041,4]
[328014980,1716773494072,-526.63,0.00029041,4]
[328014981,1716773494082,-500.0,0.00029041,4]
[328014982,1716773494092,-500.0,0.00029041,4]
[328014983,1716773494101,-500.0,0.00029041,4]
[328014984,1716773494112,-659.81,0.00029041,4]
[328014985,1716773494122,-566.26,0.00029041,4]
[328014986,1716773494131,-724.95,0.00029041,4]
[328014987,1716773494141,-715.24,0.00029041,4]
[328014988,1716773494150,-500.0,0.00029041,4]
[328014989,1716773494159,-500.0,0.00029041,4]
[328014990,1716773494169,-500.0,0.00029041,4]
[328014991,1716773494178,-500.0,0.00029041,4]
[328014992,1716773494188,-537.11,0.00029041,4]
[328014993,1716773494197,-500.0,0.00029041,4]
[328014994,1716773494207,-500.0,0.00029041,4]
[328014995,1716773494216,-500.0,0.00029041,4]
[328014996,1716773494226,-1115.92,0.00029041,4]
[328014997,1716773494236,-514.34,0.00029041,4]
[328014998,1716773494247,-500.0,0.00029041,4]
[328014999,1716773494256,-500.0,0.00029041,4]
[328015000,1716773494266,-500.0,0.00029041,4]
[328015001,1716773494276,-500.0,0.00029041,4]
[328015002,1716773494286,-500.0,0.00029041,4]
[328015003,1716773494296,-500.0,0.00029041,4]
[328015004,1716773494306,-500.0,0.00029041,4]
[328015005,1716773494315,-500.0,0.00029041,4]
[328015006,1716773494325,-500.0,0.00029041,4]
[328015007,1716773494336,-500.0,0.00029041,4]
[328015008,1716773494345,-1161.05,0.00029041,4]
[328015009,1716773494355,-657.79,0.00029041,4]
[328015010,1716773494365,-500.0,0.00029041,4]
[328015011,1716773494375,-500.0,0.00029041,4]
[328015012,1716773494385,-500.0,0.00029041,4]
[328015013,1716773494394,-500.0,0.00029041,4]
[328015014,1716773494404,-563.52,0.00029041,4]
[328015015,1716773494413,-513.43,0.00029041,4]
[328015016,1716773494422,-553.3,0.00029041,4]
[328015017,1716773494432,-500.0,0.00029041,4]
[328015018,1716773494441,-590.37,0.00029041,4]
[328015019,1716773494450,-500.0,0.00029041,4]
[328015020,1716773494460,-500.0,0.00029041,4]
[328015021,1716773494470,-500.0,0.00029041,4]
[328015022,1716773494479,-500.0,0.00029041,4]
[328015023,1716773494489,-500.0,0.00029041,4]
[328015024,1716773494498,-500.0,0.00029041,4]
[328015025,1716773494509,-500.0,0.00029041,4]
[328015026,1716773494519,-500.0,0.00029041,4]
[328015027,1716773494529,-677.81,0.00029041,4]
[328015028,1716773494539,-640.38,0.00029041,4]
[328015029,1716773494549,-500.0,0.00029041,4]
[328015030,1716773494558,-500.0,0.00029041,4]
[328015031,1716773494568,-689.4,0.00029041,4]
[328015032,1716773494578,-500.0,0.00029041,4]
[328015033,1716773494588,-500.0,0.00029041,4]
[328015034,1716773494598,-500.0,0.00029041,4]
[328015035,1716773494607,-500.0,0.00029041,4]
[328015036,1716773494618,-566.57,0.00029041,4]
[328015037,1716773494628,-1225.47,0.00029041,4]
[328015038,1716773494637,-500.0,0.00029041,4]
[328015039,1716773494647,-921.84,0.00029041,4]
[328015040,1716773494656,-652.09,0.00029041,4]